Cogmind - Beta 17 @@@ ROGUE MODE // 2026.07.24 @ 19:29:06 Player: Quad Result: Destroyed by G-34 Mercenary with Small Laser Performance ------------- Evolutions (1) 500 Regions Visited (2) 400 Robots Destroyed (12) 60 Value Destroyed (337) 337 Prototype IDs (0) 0 Alien Tech Used (0) 0 Bonus (0) 0 TOTAL SCORE: 1297 Bonus ------- None Cogmind --------- Core Integrity 0/400 Matter 266/300 Energy 100/100 System Corruption 4% Temperature Cool (6) Movement Core (100) Ox1 Location -9/Materials Parts ------- > --- POWER (1) -------- (None) > --- PROPULSION (3) --- (None) > --- UTILITY (3) ------ Small Storage Unit > --- WEAPON (2) ------- (None) > --- INVENTORY (8) ---- Heat Sink Rocket Launcher Rocket Launcher Datajack Peak State ------------ > --- POWER ------------ Ion Engine > --- PROPULSION ------- Aluminum Leg Aluminum Leg Aluminum Leg > --- UTILITY ---------- Improved Heat Sink Terrain Scanner ECM Suite > --- WEAPON ----------- Heavy Particle Cannon Heavy Particle Cannon > --- INVENTORY -------- Heat Sink Datajack [Rating: 15] Favorites ----------- Power Ion Engine Engine Ion Engine Propulsion Aluminum Leg Leg Aluminum Leg Wheel Wheel Utility ECM Suite Device ECM Suite Storage Small Storage Unit Weapon Heavy Particle Cannon Energy Gun Small Laser Energy Cannon Heavy Particle Cannon Ballistic Gun Assault Rifle Special Melee Weapon Datajack Build | -11 -10 -9 ------- Run | Yrd Mat Mat Slots Evolved 2 | . . 2 Power . | . . . Propulsion 1 | . . 1 Utility 1 | . . 1 Weapon . | . . . Parts Attached 22 | 6 6 10 Power 5 | 1 2 2 Engine 5 | 1 2 2 Core . | . . . Reactor . | . . . Propulsion 5 | 2 . 3 Treads . | . . . Leg 3 | . . 3 Wheel 2 | 2 . . Hover . | . . . Flight . | . . . Utility 5 | 1 2 2 Device 4 | 1 2 1 Storage 1 | . . 1 Processor . | . . . Hackware . | . . . Protection . | . . . Artifact . | . . . Weapon 7 | 2 2 3 Energy Gun 1 | . 1 . Energy Cannon 2 | . . 2 Ballistic Gun 3 | 2 . 1 Ballistic Cannon . | . . . Launcher . | . . . Special Weapon . | . . . Impact Weapon . | . . . Slashing Weapon . | . . . Piercing Weapon . | . . . Special Melee Weapon 1 | . 1 . Unidentified Prototypes . | . . . Parts Lost 6 | . . 6 Power 1 | . . 1 Propulsion 3 | . . 3 Utility 2 | . . 2 Weapon . | . . . Highest Loss Streak 5 | . . 5 To Critical Strikes 1 | . . 1 Average Backups 2 | . 2 2 Power . | . . . Propulsion . | . . . Utility 1 | . 1 1 Weapon . | . . . Tool/Special . | . . . Unused Backups 2 | . . 2 Power . | . . . Propulsion . | . . . Utility 1 | . . 1 Weapon 1 | . . 1 Tool/Special . | . . . Average Slot Usage (%) 85 | . 88 83 Engine 11 | . 14 10 Leg 13 | . . 18 Wheel 9 | . 28 2 Device 26 | . 20 29 Energy Gun 2 | . 2 2 Energy Cannon 11 | . . 16 Ballistic Gun 7 | . 19 2 Peak Build Rating 15 | 6 7 15 Average Rating 10 | 3 6 12 On Entrance 4 | . 6 7 Avg Prop Armor Cover (%) 7 | . . 7 Naked Turns . | . . . Heaviest Build 25 | 7 11 25 Greatest Support 30 | 20 20 30 Greatest Overweight (x) 4 | . . 4 Average Overweight (x) . | . . . Largest Inventory Capacity 8 | 5 5 8 Average Capacity 5 | 5 5 5 Most Carried 5 | . 3 5 Average Carried 2 | . 2 2 Final Capacity 8 | 5 5 8 Final Carried 4 | . 3 4 Class Distribution -------------------- 89% | Mutant 10% | Scavenger-Mutant Dominant Class ---------------- Mutant | -10/Materials Mutant | -9/Materials Resources | -11 -10 -9 ----------- Run | Yrd Mat Mat Matter Collected 557 | 262 80 215 Remotely . | . . . Salvage Created 384 | 32 31 321 Parts 23 | 1 4 18 Haulers Intercepted . | . . . Recyclers Shooed . | . . . Parts Field Recycled . | . . . Retrieved Matter . | . . . Parts Self-Destructed . | . . . Prevented . | . . . Parts Restored . | . . . Kills | -11 -10 -9 ------- Run | Yrd Mat Mat Combat Hostiles Destroyed 11 | 1 1 9 Guns 4 | 1 1 2 Cannons 7 | . . 7 Classes Destroyed 4 | 1 . 3 Watcher 1 | . . 1 Swarmer 4 | . . 4 Grunt 4 | 1 1 2 Sentry 3 | . . 3 Best Kill Streak 5 | 1 1 5 Combat Bots Only 5 | 1 1 5 Max Kills in Single Turn 1 | 1 1 1 Gunslinging . | . . . Exploded . | . . . Melee . | . . . Uniques/NPCs Destroyed . | . . . Combat | -11 -10 -9 -------- Run | Yrd Mat Mat Hostile Shots Fired 142 | 3 3 136 Missed 31 | . . 31 Hits 111 | 3 3 105 Melee 5 | . . 5 Projectile 106 | 3 3 100 Critical Strikes 3 | . . 3 Damage Taken 1311 | 31 40 1240 Core 420 | 10 . 410 Absorbed by Shields . | . . . Regen/Repaired (Parts) 16 | . 16 . Core Remaining (%) 96 | 96 96 . Volleys Fired 44 | 3 3 38 Largest 2 | 2 2 2 Hottest 150 | 40 40 150 Shots Fired 83 | 6 4 73 Gun 39 | 6 4 29 Cannon 44 | . . 44 Launcher . | . . . Special . | . . . Kinetic 25 | 6 4 15 Thermal 58 | . . 58 Explosive . | . . . Electromagnetic . | . . . Robot Hit Streak 14 | 4 8 14 Robot Miss Streak 6 | 1 . 6 Penetration Max . | . . . Secondary Targets . | . . . Shots Hit Robots 43 | 4 5 34 Core Hits 18 | 3 3 12 Critical Kills . | . . . Critical Parts Destroyed . | . . . Critical Strikes . | . . . Melee Attacks 2 | . 2 . Impact . | . . . Slashing . | . . . Piercing . | . . . Sneak Attacks . | . . . Combat Hostiles . | . . . Follow-up Attacks . | . . . Damage Inflicted 792 | 45 62 685 Guns 252 | 45 47 160 Cannons 525 | . . 525 Explosions . | . . . Melee . | . . . Ramming 15 | . 15 . Kinetic 198 | 45 47 106 Thermal 579 | . . 579 Explosive . | . . . Electromagnetic . | . . . Impact . | . . . Slashing . | . . . Piercing . | . . . Highest Corruption 4 | . . 4 Average Corruption 1 | . . 1 Corruption Purged . | . . . Corruption Blocked . | . . . Effects 2 | . . 2 Matter Fused 1 | . . 1 Data Loss (minor) 1 | . . 1 Overload Shots . | . . . Overflow Damage 5 | . . 5 Projectiles 5 | . . 5 Explosions . | . . . Melee . | . . . Knockbacks 1 | . 1 . Impact 1 | . 1 . Kinetic . | . . . Secondary . | . . . Self-Inflicted Damage 7 | . 7 . Shots . | . . . Rammed 2 | . 2 . Targets Rammed 2 | . 2 . Kicked . | . . . Crushed . | . . . Highest Temperature 594 | 6 . 594 Average Temperature 215 | 6 . 221 Received Heat Transfer 312 | 18 18 276 Effects 9 | . . 9 Shutdowns 3 | . . 3 Energy Bleed 2 | . . 2 Matter Decay 2 | . . 2 Short Circuit 1 | . . 1 Damage (minor) 1 | . . 1 Siege Activations . | . . . Martial Activations . | . . . Shielding Activations . | . . . Robots Disrupted . | . . . Combat Hostiles . | . . . Robots Corrupted . | . . . Combat Hostiles . | . . . Parts Fried . | . . . Impact Corruptions . | . . . Robots Melted . | . . . Combat Hostiles . | . . . Parts Melted 4 | . . 4 Heat Transferred 902 | . . 902 Parts Sabotaged . | . . . Parts Stolen . | . . . Parts Stripped . | . . . Power Chain Reactions . | . . . Alert | -11 -10 -9 ------- Run | Yrd Mat Mat Maximum Alert Level . | . . . Low Security (%) 100 | 100 100 100 Level 1 . | . . . Level 2 . | . . . Level 3 . | . . . Level 4 . | . . . Level 5 . | . . . High Security . | . . . Max Security . | . . . Peak Influence 129 | 20 30 129 Initial 13 | . 13 . Average 19 | 3 5 27 Influence Increases 325 | 20 34 271 Destroy 0b10 Robot/C 220 | 20 20 180 Destroy 0b10 Robot/NC 5 | . . 5 Destroy Leader 62 | . 10 52 Successful Hack 9 | . 4 5 Disable Machine 15 | . . 15 Destroy Structure 14 | . . 14 Influence Decreases 276 | . 52 224 Entered New Map 9 | . 7 2 Time Decay 217 | . 45 172 Lost Part 50 | . . 50 Squads Dispatched 2 | . 1 1 Investigation . | . . . Extermination . | . . . Reinforcement 2 | . 1 1 Assault . | . . . Garrison . | . . . Intercept . | . . . Searches Triggered . | . . . Construction Impeded . | . . . Haulers Reinforced . | . . . Active Scanning Responses . | . . . Cargo Convoy Interrupts . | . . . Stealth | -11 -10 -9 --------- Run | Yrd Mat Mat Distress Signals 2 | . . 2 Communications Jammed . | . . . Distress Signals . | . . . Times Spotted 26 | 1 5 20 Peak Tracking Total 11 | 1 2 11 Tactical Retreats 2 | . 2 . ECM-based Alert Blocks 3 | . 3 . Traps | -11 -10 -9 ------- Run | Yrd Mat Mat Traps Triggered 1 | . . 1 Indirectly . | . . . Trap Hack Attempts . | . . . Triggered . | . . . Disarmed . | . . . Reprogrammed . | . . . Reused . | . . . Traps Extracted . | . . . Installed . | . . . Triggered . | . . . Machines | -11 -10 -9 ---------- Run | Yrd Mat Mat Machines Disabled 1 | . . 1 Max in Single Turn 1 | . . 1 Machines Repaired . | . . . Machines Dismantled . | . . . Machines Sabotaged . | . . . Overloaded Fab Kills . | . . . Hacking | -11 -10 -9 --------- Run | Yrd Mat Mat Machines Accessed 6 | . 2 4 Terminals 4 | . 1 3 Fabricators . | . . . Repair Stations 1 | . 1 . Recycling Units 1 | . . 1 Scanalyzers . | . . . Garrison Access . | . . . Total Hacks 10 | . 4 6 Successful 8 | . 3 5 Failed 2 | . 1 1 Catastrophic . | . . . Database Lockouts . | . . . Manual . | . . . Terminals 7 | . 2 5 Fabricators . | . . . Repair Stations 2 | . 2 . Recycling Units 1 | . . 1 Scanalyzers . | . . . Garrison Access . | . . . Terminal Hacks 5 | . 1 4 Record 3 | . 1 2 Alert Level 1 | . . 1 Hauler Manifests 1 | . . 1 Fabricator Hacks . | . . . Repair Station Hacks 2 | . 2 . Scan Component 1 | . 1 . Repair 1 | . 1 . Recycling Unit Hacks 1 | . . 1 Report Inventory 1 | . . 1 Scanalyzer . | . . . Garrison Access Hacks . | . . . Unauthorized Hacks . | . . . Terminals . | . . . Fabricators . | . . . Repair Stations . | . . . Recycling Units . | . . . Scanalyzers . | . . . Garrison Access . | . . . Data Cores Recovered . | . . . Used . | . . . Hacking Detections 3 | . 2 1 Full Trace Events . | . . . Feedback Events . | . . . Feedback Blocked . | . . . Robot Schematics Acquired . | . . . Robots Built . | . . . Authchips . | . . . Time . | . . . Total Robot Build Rating . | . . . Part Schematics Acquired . | . . . Parts Built . | . . . Authchips . | . . . Time . | . . . Total Part Build Rating . | . . . Part Studies Acquired . | . . . Parts Repaired 1 | . 1 . Time 26 | . 26 . Parts Recycled . | . . . Recycled Matter . | . . . Retrieved Matter . | . . . Retrieved Components . | . . . Parts Scanalyzed . | . . . Part Schematics Acquired . | . . . Parts Damaged . | . . . Bothacking | -11 -10 -9 ------------ Run | Yrd Mat Mat Used RIF Installer . | . . . Robots Hacked 1 | . 1 . Non-combat . | . . . Combat 1 | . 1 . Robot Hacks Applied 1 | . 1 . parse_system 1 | . 1 . Relay Couplers Released . | . . . Fabnet Peak Effective % . | . . . Robots Rewired . | . . . Allies Hacked . | . . . Hacks Repelled . | . . . Allies | -11 -10 -9 -------- Run | Yrd Mat Mat Total Allies . | . . . Largest Group . | . . . Highest-Rated Group . | . . . Highest-Rated Ally . | . . . Total Orders . | . . . Ally Attacks . | . . . Total Damage . | . . . Kills . | . . . Allies Corrupted . | . . . Allies Melted . | . . . Intel | -11 -10 -9 ------- Run | Yrd Mat Mat Active Infowar (turns) 560 | . 109 451 Terrain 549 | . 98 451 ECM 560 | . 109 451 Robot Analysis Total . | . . . Derelict Logs Recovered . | . . . Drone Launches . | . . . Drone Recoveries . | . . . Exploration | -11 -10 -9 ------------- Run | Yrd Mat Mat Turns Passed 882 | 56 226 600 Spaces Moved 543 | 54 200 289 Core 18 | 15 . 3 Treads . | . . . Legs 210 | . . 210 Wheels 315 | 39 200 76 Hover . | . . . Flight . | . . . Fastest Speed 50 | 50 80 80 Average Speed 120 | 71 80 156 Slowest Speed 250 | 80 80 250 Overloaded Moves . | . . . Propulsion Burnouts . | . . . Robots Hopped . | . . . Potential Cave-ins . | . . . Cave-ins Triggered . | . . . Exploration Rate (%) 20 | 5 31 26 Regions Visited 2 Branch Regions . Pre-discovered Areas . | . . . Known Exits Taken . | . . . Unknown Exits Taken 2 | 1 1 . Scrap Searched . | . . . Spaces Dug . | . . . Terrain Destroyed 15 | . . 15 Melee . | . . . Projectile 15 | . . 15 AOE . | . . . Terrain Rammed . | . . . Walls Destroyed . | . . . Machines Disabled . | . . . Actions | -11 -10 -9 --------- Run | Yrd Mat Mat Total 685 | 62 260 363 Wait 48 | . 37 11 Move 541 | 53 199 289 Hop . | . . . Pick Up 5 | . 1 4 Fast Attach 23 | 6 7 10 Attach 2 | . 2 . Detach 4 | . 4 . Swap . | . . . Drop 14 | . 3 11 Fire 44 | 3 3 38 Melee 2 | . 2 . Ram 2 | . 2 . Kick . | . . . Crush . | . . . Escape Stasis . | . . . Rewire . | . . . Trap . | . . . Miscellaneous . | . . . Route ------- -11/Scrapyard -10/Materials -9/Materials (discovered 1 exit: [*Sto]) History --------- Turn | Location | Event 2 | -11/Scrapyard | Met Revision 17 38 | -11/Scrapyard | Discovered new exit (range 8) 57 | -11/Scrapyard | Entered Materials 198 | -10/Materials | Discovered new exit (range 7) 215 | -10/Materials | Repaired Assault Rifle 283 | -10/Materials | Entered another Materials area 283 | -9/Materials | Evolved 2 slots: Propulsion x1, Utility x1 316 | -9/Materials | Build established: Mutant 865 | -9/Materials | Discovered new exit (range 8) 876 | -9/Materials | Core integrity fell below 50% 882 | -9/Materials | Core integrity fell below 20% 883 | -9/Materials | Destroyed by G-34 Mercenary with Small Laser Last Messages --------------- 00842_ U-05 Engineer builds a Wall. 00843_ Acquired 10 matter. 00847_ Acquired 14 matter. 00850_ Dropped Broken Aluminum Leg. 00851_ Acquired Rocket Launcher. 00852_ R-06 Scavenger collects Heat Sink. 00854_ Acquired Rocket Launcher. 00855_ Dropped Rocket Launcher. 00858_ R-06 Scavenger collects Rocket Launcher. 00865_ R-06 Scavenger collects Terrain Scanner. 00865_ EXIT=FOUND 00869_ Aluminum Leg destroyed. 00869_ Hvy. Particle Cannon severed. 00872_ Ion Engine destroyed. 00877_ Aluminum Leg destroyed. 00877_ Imp. Heat Sink destroyed. 00881_ Hvy. Particle Cannon severed. 00882_ Critical hit (Smash). 00882_ ECM Suite destroyed. 00882_ System corrupted by crushing effect (+3). Map ----- +----------------------------------------------------+ | ?????????????????????????????????????????????????? | | ?????????????????????????????????????????????????? | | ?????????????????????????????????????????????????? | | ?????????????????????????????????????????????????? | | ?????????????????????????????????????????????????? | | ?????????????????????????????????????????????????? | | ?????????????????????????????????????????????????? | | ?????????????????????????????????????????????????? | | ?????????????????????????????????????????????????? | | ?????????????????????????????????????????????????? | | ??????????????????????? ???????????????????????? | | ?????????????????????? ??????????????????????? | | ?????????????????????? ??????????????????????? | | ?????????????????????? ??????????????????????? | | ?????????????????????? ??????????????????????? | | ??????????????????????# #??????????????????????? | | ??#???????????????????# #??????????????????????? | | ? #?#####???????????### g#??????????????????????? | | ??? ????????????? Y #??????????????????????? | | ??? ????????????? #???###????????????????? | | ???? ? ???????????? k #?? ?????????????????? | | ???# #?????????????## g##? ??????????????????? | | ???# #?????????????# # ???????????????????? | | ???# #?????????????# gg # ????????????????????? | | #### #?????????????# gm +?????????????????????? | | # #?????????????# b@g#?????????????????????? | | # #####?????????# l #?????????????????????? | | # # ############ Y ;#?????????????????????? | | # #?# # ;#?????????????????????? | | +% #????# """ """ # # #????????????????????? | | # #????# " """ +] ###????????????????????? | | # #????# " # #??????????????????????? | | # #???## = # #??????????????????????? | | # ###### [ # ^ ##?????????????????????? | | #### + [ !# ##?????????????????????? | | ???# ###### # #??????????????????????? | | ???## ##???##%######### #??????????????????????? | | ??? ?????###???????# #??????????????????????? | | ??# ##???????????????# #??????????????????????? | | ??###?????????????????# #??????????????????????? | | ??????????????????????# #??????????????????????? | | ??????????????????????# #??????????????????????? | | ??????????????????????# #??????????????????????? | | ??????????????????????? #??????????????????????? | | ??????????????????????? #??????????????????????? | | ??????????????????????? #??????????????????????? | | ??????????????????????? ???????????????????????? | | ?????????????????????????????????????????????????? | | ?????????????????????????????????????????????????? | | ?????????????????????????????????????????????????? | +----------------------------------------------------+ Best States ------------- Heat Dissipation 42 Energy Generation 10 Energy Capacity 250 Matter Stores 300 Matter Capacity 300 Sight Range 16 Terrain Scan Range 14 Terrain Scan Density 10 ECM Strength 1 Evasion (%) 50 Item Schematics ----------------- None Robot Schematics ------------------ None Fabricated ------------ Nothing Repaired ---------- Assault Rifle | 84% | -10/Materials Studied --------- None Alien Tech Used ----------------- None Achievements -------------- Part-time Mechanic Shopping List Storm Trooper Well Done Challenges ------------ None Game ------ Seed CoilLauncherMace Manual? 0 Play Time 00:13:24 Cumulative 2.7 hours Start 2026.07.24 @ 19:12:43 End 2026.07.24 @ 19:29:06 Sessions 1 Manual Loads 0 Difficulty Rogue Special Mode None Game No. 3 Rogue 1 Adventurer 2 Explorer 0 Win Type - Total 0 Types 0/0/0/0/0/0/0/0/0/0 Lore% 5 Gallery% 7 Achievement% 7 Wizard Run 0 Options --------- Layout 0 ASCII 0 Keyboard 0 Movement Mouse Keybinds 0 Fullscreen 1 Font 18/SmallcapsGlow Map View 76x50 Zoom Use 0% Tactical HUD 1 Map Filters NONE Filters NONE Steam 1 RUN: 737c42e7-0b53-4f84-b5b4-159b085ad14e